bitfinex/quotes_SOLUSD_20251103
["timestamp","ask_amount","ask_price","bid_price","bid_amount"]
[1762202713352,9.78882769,165.93,165.85,0.7]
[1762202713649,9.78882769,165.93,165.85,21.292]
[1762202713852,0.7,165.94,165.85,21.292]
[1762202714028,10.48882769,165.95,165.86,0.7]
[1762202714235,0.7,165.95,165.86,0.7]
[1762202714444,6.02627455,165.94,165.87,6.02881774]
[1762202714656,21.09196094,165.94,165.87,6.02881774]
[1762202714963,10.48882769,165.93,165.85,20.592]
[1762202715148,14.45154836,165.93,165.85,0.7]
[1762202715344,3.96272067,165.93,165.86,0.7]
[1762202715655,6.02627455,165.94,165.86,0.7]
[1762202715841,9.98899522,165.94,165.86,0.7]
[1762202716037,3.96272067,165.94,165.87,0.14216157]
[1762202716246,8.9323897,165.97,165.9,20.592]
[1762202716474,10.99475565,165.98,165.91,6.02736423]
[1762202716648,6.02508662,165.98,165.91,6.72736423]
[1762202716840,15.81391431,165.98,165.92,0.7]
[1762202717153,3.96272067,165.97,165.9,0.7]
[1762202717337,4.66272067,165.97,165.89,20.592]
[1762202717538,4.66272067,165.97,165.9,0.7]
[1762202717735,4.66272067,165.97,165.81,30.15447439]
[1762202717736,20.592,165.95,165.81,30.15447439]
[1762202717938,20.592,165.95,165.76,104.3]
[1762202717939,9.78882769,165.93,165.82,0.7]
[1762202718165,7.77451015,165.92,165.82,6.73063562]
[1762202718360,9.78882769,165.91,165.83,0.7]
[1762202718550,9.78882769,165.89,165.81,6.03093173]
[1762202718744,9.78882769,165.89,165.81,6.73093173]
[1762202718952,9.78882769,165.89,165.81,6.03093173]
[1762202719146,9.78882769,165.89,165.82,0.7]
[1762202719351,0.7,165.88,165.82,0.7]
[1762202719847,9.78882769,165.89,165.82,0.7]
[1762202720159,6.02772754,165.9,165.82,0.7]
[1762202720372,10.69710664,165.9,165.82,0.7]
[1762202720670,25.7664255,165.9,165.82,0.7]
[1762202720962,3.9693791,165.89,165.82,0.7]
[1762202721345,3.9693791,165.89,165.82,21.292]
[1762202721760,3.9693791,165.89,165.83,0.7]
[1762202722268,6.02772754,165.9,165.83,0.7]
[1762202722561,3.9693791,165.91,165.85,0.14216157]
[1762202722776,8.93904813,165.95,165.87,20.592]
[1762202722950,4.96966903,165.95,165.88,0.14216157]
[1762202723143,4.96966903,165.95,165.88,0.7]
[1762202723144,14.96521106,165.95,165.88,0.7]
[1762202723346,4.96966903,165.93,165.86,0.7]
[1762202723550,0.7,165.93,165.86,0.7]
[1762202723748,5.66966903,165.93,165.86,0.7]
[1762202723954,0.7,165.93,165.86,0.7]
[1762202724768,21.09450337,165.92,165.86,0.7]
[1762202724970,3.9693791,165.91,165.82,0.14216157]
[1762202725265,3.9693791,165.91,165.86,0.7]
[1762202725491,14.45820679,165.91,165.83,0.7]
[1762202725974,21.0970464,165.9,165.83,0.7]
[1762202726148,13.7594015,165.89,165.83,0.7]
[1762202726344,3.97057381,165.89,165.83,0.7]
[1762202726765,3.97057675,165.89,165.83,0.7]
[1762202726952,9.99842106,165.9,165.83,0.7]
[1762202727148,21.0970464,165.9,165.83,0.7]
[1762202727649,13.75990097,165.89,165.83,0.7]
[1762202728252,21.09959006,165.88,165.83,0.7]
[1762202728868,6.0284543,165.88,165.83,0.7]
[1762202729064,3.97008108,165.89,165.83,6.73020917]
[1762202729376,6.02820101,165.89,165.83,0.7]
[1762202729565,6.02820101,165.89,165.84,0.65]
[1762202730469,6.73820101,165.89,165.82,0.65]
[1762202730674,6.73820101,165.89,165.81,20.592]
[1762202730851,21.80842826,165.89,165.83,0.65]
[1762202731172,3.97008108,165.88,165.83,0.65]
[1762202732381,6.02881774,165.87,165.83,0.65]
[1762202733167,6.02881774,165.87,165.81,0.67]
[1762202733663,21.79086211,165.87,165.79,0.67]
[1762202734172,3.97313578,165.86,165.79,0.67]
[1762202734358,21.10340668,165.85,165.79,0.67]
[1762202734560,3.97295466,165.84,165.79,0.67]
[1762202734758,9.78882769,165.83,165.75,0.67]
[1762202735392,9.78882769,165.83,165.75,21.262]
[1762202735687,13.76178235,165.83,165.75,0.67]
[1762202735866,3.97295466,165.82,165.76,0.67]
[1762202736060,9.78882769,165.83,165.76,0.67]
[1762202736260,21.10722469,165.82,165.73,0.14216157]
[1762202736457,21.10722469,165.82,165.73,0.81216157]
[1762202736458,21.79722469,165.82,165.73,0.81216157]
[1762202736685,21.79722469,165.82,165.73,21.262]
[1762202736686,0.69,165.81,165.73,21.262]
[1762202736875,4.65951828,165.81,165.73,21.262]
[1762202737080,4.65951828,165.81,165.74,0.67]
[1762202737762,0.69,165.81,165.74,0.67]
[1762202738274,21.1097708,165.8,165.74,0.67]
[1762202739667,6.72109325,165.81,165.74,0.67]
[1762202740065,21.79859159,165.81,165.74,0.67]
[1762202741387,6.72063562,165.82,165.74,0.67]
[1762202741594,9.99848222,165.82,165.74,27.29547549]
[1762202741893,6.03063562,165.82,165.74,27.29547549]
[1762202742063,6.03063562,165.82,165.75,0.67]
[1762202742791,21.10722469,165.82,165.75,0.67]
[1762202743013,0.69,165.81,165.75,0.67]
[1762202743563,21.1097708,165.8,165.75,0.67]
[1762202744477,21.7997708,165.8,165.75,0.67]
[1762202745682,6.03104742,165.81,165.75,0.67]
[1762202745883,9.99457524,165.81,165.75,0.67]
[1762202746062,25.07207358,165.81,165.75,0.67]
[1762202746270,21.10854576,165.81,165.75,0.67]
[1762202747173,6.03104742,165.81,165.75,0.67]
[1762202747571,3.96135527,165.82,165.75,6.70307037]
[1762202747804,6.03027196,165.83,165.75,6.70307037]
[1762202747971,0.69,165.82,165.76,0.67]
[1762202748170,25.06730714,165.83,165.74,0.67]
[1762202748386,3.96250387,165.82,165.75,0.14216157]
[1762202748590,4.65250387,165.82,165.74,0.67]
[1762202748978,4.65250387,165.82,165.74,21.262]
[1762202749382,4.65250387,165.82,165.75,0.67]
[1762202749874,21.10849767,165.81,165.75,0.67]
[1762202750190,21.79849767,165.81,165.75,0.67]
[1762202750591,3.96428165,165.8,165.75,0.67]
[1762202750804,4.65428165,165.8,165.73,0.67]
[1762202751099,0.69,165.8,165.73,0.67]
[1762202751399,4.65556235,165.8,165.73,0.67]
[1762202751592,0.69,165.8,165.73,0.67]
[1762202751775,21.11104408,165.79,165.73,0.67]
[1762202752970,3.96381896,165.78,165.73,0.67]
[1762202753170,26.16464359,165.79,165.69,0.1]
[1762202753372,4.653534,165.78,165.71,0.67]
[1762202753591,9.78882769,165.77,165.69,0.1]
[1762202753806,0.14216157,165.74,165.69,0.1]
[1762202753972,5.19576108,165.72,165.69,0.1]
[1762202754178,14.98458877,165.7,165.69,1e-08]
[1762202754499,13.75236169,165.7,165.69,1e-08]
[1762202754973,3.963534,165.7,165.69,1e-08]
[1762202755174,9.78882769,165.71,165.69,1e-08]
[1762202755394,0.83216157,165.7,165.69,1e-08]
[1762202755596,9.84929508,165.7,165.69,1e-08]
[1762202755891,21.70959178,165.7,165.69,1e-08]
[1762202756094,25.67312578,165.7,165.69,1e-08]
[1762202757605,20.61952627,165.7,165.69,1e-08]
[1762202758021,25.67312578,165.7,165.69,1e-08]
[1762202758187,20.61952627,165.7,165.69,1e-08]
[1762202758501,25.67312578,165.7,165.69,1e-08]
[1762202759102,20.61952627,165.7,165.69,1e-08]
[1762202759684,25.67312578,165.7,165.69,1e-08]
[1762202760327,30.64279481,165.7,165.69,1e-08]
[1762202760616,0.14216157,165.65,165.63,0.1]
[1762202760780,14.98458877,165.64,165.63,0.1]
[1762202760979,0.14216157,165.63,165.54,21.262]
[1762202761198,9.78882769,165.61,165.54,6.71083223]
[1762202761379,9.78882769,165.61,165.55,0.67]
[1762202761591,5.05359951,165.65,165.55,0.67]
[1762202761592,9.78882769,165.65,165.55,0.67]
[1762202761794,13.73807573,165.65,165.55,0.67]
[1762202762004,21.13016179,165.64,165.55,6.71017764]
[1762202762312,9.78882769,165.62,165.56,0.67]
[1762202762513,0.14216157,165.6,165.45,21.15442731]
[1762202762732,9.78882769,165.55,165.45,6.04412209]
[1762202763042,5.05359951,165.56,165.32,50.0]
[1762202763043,9.78882769,165.53,165.46,0.66]
[1762202763184,18.79167524,165.53,165.46,0.66]
[1762202763515,18.79167524,165.53,165.34,1.99999999]
[1762202763516,1.99999999,165.4,165.24,3.15915493]
[1762202763724,9.78882769,165.37,165.25,0.66]
[1762202763920,6.55110644,165.39,165.25,0.66]
[1762202764229,0.68,165.43,165.29,1.99999999]
[1762202764387,0.68,165.43,165.27,53.43099168]
[1762202764594,13.71738465,165.45,165.28,2.65999999]
[1762202764896,0.68,165.49,165.33,0.14216157]
[1762202765092,9.78882769,165.5,165.36,0.14216157]
[1762202765309,13.71945525,165.5,165.32,11.93098925]
[1762202765611,19.45305476,165.5,165.36,0.14216157]
[1762202765912,0.14216157,165.46,165.34,0.14216157]
[1762202766112,9.78882769,165.43,165.34,6.70814322]
[1762202766297,14.8424272,165.43,165.34,0.66]
[1762202766497,9.78882769,165.41,165.35,0.66]
[1762202766810,9.78882769,165.43,165.35,0.66]
[1762202767019,5.19576108,165.42,165.29,6.04997277]
[1762202767227,14.8424272,165.38,165.18,1.99999999]
[1762202767424,20.592,165.35,165.29,0.66]
[1762202767722,9.78882769,165.35,165.21,15.13225591]
[1762202767890,20.592,165.36,165.22,0.66]
[1762202767891,9.78882769,165.36,165.22,0.66]
[1762202768095,9.78882769,165.36,165.26,20.592]
[1762202768320,0.14216157,165.35,165.23,21.18259395]
[1762202768516,5.73359951,165.36,165.24,0.66]
[1762202768517,0.68,165.36,165.24,0.66]
[1762202768835,6.72757362,165.36,165.26,20.592]
[1762202769133,9.78882769,165.32,165.24,0.66]
[1762202769345,9.78882769,165.3,165.24,0.66]
[1762202769550,14.8424272,165.32,165.24,0.66]
[1762202769712,9.78882769,165.32,165.24,0.66]
[1762202769917,9.93098926,165.32,165.22,21.18383015]
[1762202770113,0.68,165.31,165.22,0.66]
[1762202770347,0.14216157,165.3,165.16,18.8500864]
[1762202770644,5.05359951,165.24,165.16,0.66]
[1762202770839,14.8424272,165.25,165.16,0.66]
[1762202771027,0.68,165.26,165.16,0.66]
[1762202771227,10.46882769,165.29,165.16,0.66]
[1762202771419,10.46882769,165.29,165.17,0.14216157]
[1762202771819,10.46882769,165.29,165.18,0.66]
[1762202772020,9.78882769,165.27,165.19,6.0536352]
[1762202772224,9.78882769,165.27,165.18,0.66]
[1762202772552,9.78882769,165.25,165.18,0.66]
[1762202772750,9.78882769,165.25,165.16,0.66]
[1762202772924,9.78882769,165.25,165.12,15.14000586]
[1762202773126,5.05359951,165.22,165.13,0.66]
[1762202773333,9.78882769,165.21,165.13,0.66]
[1762202773540,15.5224272,165.21,165.13,0.66]
[1762202773720,9.78882769,165.19,165.1,6.71693519]
[1762202773920,9.78882769,165.19,165.1,6.05693519]
[1762202774242,0.68,165.2,165.12,6.05620155]
[1762202774441,9.78882769,165.19,165.11,0.66]
[1762202774616,9.78882769,165.19,165.11,6.71635048]
[1762202774943,0.68,165.2,165.11,6.71635048]
[1762202775148,0.68,165.2,165.09,6.05701636]
[1762202775149,9.78882769,165.17,165.09,6.05701636]
[1762202775441,9.93098926,165.19,165.08,6.71763708]
[1762202775645,9.78882769,165.17,165.08,27.30963708]
[1762202775842,5.05359951,165.16,165.08,27.30963708]
[1762202776146,0.68,165.19,165.1,6.05693519]
[1762202776442,5.05359951,165.22,165.1,6.05693519]
[1762202776443,9.78882769,165.21,165.1,6.05693519]
[1762202776643,10.46882769,165.21,165.11,0.66]
[1762202776846,0.68,165.25,165.13,20.592]
[1762202777342,9.7950671,165.32,165.14,0.66]
[1762202777537,0.68,165.28,165.15,20.73416157]
[1762202777742,0.68,165.28,165.17,0.14216157]
[1762202778129,0.68,165.28,165.19,21.18772321]
[1762202778537,6.05003633,165.29,165.2,0.66]
[1762202778723,0.68,165.31,165.22,20.592]
[1762202778925,0.68,165.34,165.23,0.66]
[1762202779423,9.78882769,165.35,165.23,0.66]
[1762202779626,0.68,165.37,165.24,20.73416157]
[1762202779831,0.68,165.37,165.25,0.66]
[1762202780048,5.05359951,165.34,165.25,0.66]
[1762202780256,9.78882769,165.29,165.21,0.66]
[1762202780758,9.78882769,165.27,165.18,6.71400169]
[1762202780945,0.68,165.28,165.19,0.66]
[1762202781338,5.05359951,165.24,165.16,6.71437536]
[1762202781942,9.78882769,165.23,165.16,0.66]
[1762202782144,11.10650187,165.21,165.16,0.66]
[1762202782426,5.05359951,165.2,165.13,0.66]
[1762202782747,0.82216157,165.2,165.07,0.1]
[1762202782939,14.8424272,165.14,165.07,0.76]
[1762202783244,20.73416157,165.17,165.07,6.81797396]
[1762202783448,0.14216157,165.17,165.07,6.81797396]
[1762202783624,10.46882769,165.17,165.08,0.66]
[1762202783821,15.5224272,165.17,165.08,0.66]
[1762202784021,5.05359951,165.16,165.09,6.05730207]
[1762202784247,6.05436822,165.17,165.08,6.71764112]
[1762202784464,9.78882769,165.16,165.08,6.71764112]
[1762202784947,6.73436822,165.17,165.09,0.66]
[1762202785154,30.38082769,165.18,165.09,0.66]
[1762202785359,9.78882769,165.17,165.09,0.66]
[1762202785647,42.46111579,165.18,165.09,0.66]
[1762202785848,9.78882769,165.17,165.09,0.66]
[1762202786063,14.8424272,165.17,165.09,0.66]
[1762202786366,11.10833431,165.16,165.09,0.66]
[1762202786539,5.05359951,165.15,165.07,21.30312453]
[1762202786857,0.68,165.22,165.08,0.66]
[1762202787066,5.05359951,165.16,165.08,0.66]
[1762202787357,5.05359951,165.19,165.08,0.66]
[1762202787656,0.68,165.21,165.09,0.14216157]
[1762202787972,5.05359951,165.19,165.08,0.66]
[1762202788131,11.10778776,165.18,165.11,6.05656834]
[1762202788461,5.05359951,165.15,165.08,0.66]
[1762202788947,9.78882769,165.17,165.08,0.66]
[1762202789327,9.78882769,165.15,165.08,0.66]
[1762202789527,14.8424272,165.15,165.08,0.66]
[1762202789928,5.05359951,165.14,165.08,0.66]
[1762202790136,6.05546808,165.14,165.08,0.66]
[1762202790548,6.05546808,165.14,165.07,6.15800927]
[1762202790549,9.78882769,165.13,165.07,0.1]
[1762202790739,6.73546808,165.14,165.07,6.8779613]
[1762202790937,6.73546808,165.14,165.07,0.82]
[1762202791140,6.73546808,165.14,165.07,6.87799588]
[1762202791337,6.05546808,165.14,165.07,6.87799588]
[1762202791735,0.68,165.16,165.07,6.15799588]
[1762202791954,6.05514137,165.15,165.08,0.72]
[1762202792631,9.78882769,165.14,165.08,0.72]
[1762202792827,14.8424272,165.14,165.08,6.77765509]
[1762202793151,9.78882769,165.14,165.08,0.72]
[1762202793749,0.68,165.13,165.07,0.1]
[1762202794160,6.05693519,165.1,165.07,0.1]
[1762202794374,5.05359951,165.11,165.07,0.1]
[1762202794664,0.68,165.1,165.07,0.1]
[1762202794832,0.68,165.13,165.07,0.78]
[1762202795031,9.78882769,165.13,165.07,6.83796974]
[1762202795233,16.52356249,165.16,165.07,6.83796974]
[1762202795434,6.7347348,165.16,165.08,0.68]
[1762202795643,30.38082769,165.17,165.08,0.68]
[1762202796167,6.73410945,165.18,165.09,6.05730207]
[1762202796330,26.92271319,165.18,165.08,6.73763606]
[1762202796747,26.92271319,165.18,165.09,0.68]
[1762202796945,9.78882769,165.19,165.09,0.68]
[1762202797139,14.8424272,165.19,165.09,0.68]
[1762202797350,20.89625877,165.19,165.09,0.68]
[1762202797549,5.05359951,165.17,165.09,0.68]
[1762202797750,9.78882769,165.18,165.09,0.68]
[1762202797956,6.05383157,165.19,165.09,0.68]
[1762202798254,5.05359951,165.16,165.09,0.68]
[1762202798454,10.46882769,165.18,165.08,6.057669]
[1762202798657,5.05359951,165.13,165.07,0.78]
[1762202799652,5.05359951,165.14,165.07,0.78]
[1762202799852,5.05359951,165.17,165.07,6.83802423]
[1762202800057,9.78882769,165.18,165.08,0.68]
[1762202800058,5.05359951,165.16,165.08,0.68]
[1762202800262,11.10848303,165.16,165.09,6.05730207]
[1762202800445,6.05488352,165.16,165.09,6.05730207]
[1762202800635,6.05433206,165.18,165.1,0.68]
[1762202800953,5.05359951,165.17,165.1,0.68]
[1762202801359,5.05359951,165.18,165.1,0.68]
[1762202802366,5.05359951,165.16,165.07,0.78]
[1762202802537,6.05436822,165.17,165.08,0.68]
[1762202803556,5.05359951,165.16,165.08,0.68]
[1762202803944,11.78796773,165.17,165.08,0.68]
[1762202804348,11.78796773,165.17,165.09,6.05730207]
[1762202804349,3.89317654,165.16,165.09,6.05730207]
[1762202804675,9.94754476,165.17,165.09,6.05730207]
[1762202804867,6.05436822,165.17,165.1,0.68]
[1762202805242,3.89317654,165.18,165.1,0.68]
[1762202805466,9.9471252,165.19,165.1,0.68]
[1762202805652,6.05394866,165.19,165.1,0.68]
[1762202805849,21.18803667,165.19,165.1,0.68]
[1762202806162,3.89317654,165.18,165.1,0.68]
[1762202806365,6.05394866,165.19,165.11,6.05656834]
[1762202806665,5.05359951,165.15,165.1,0.68]
[1762202806846,3.89317654,165.14,165.07,6.15799366]
[1762202807043,8.94677605,165.15,165.08,0.68]
[1762202807241,3.89317654,165.14,165.08,0.68]
[1762202807443,3.89317654,165.13,165.08,0.68]
[1762202807652,3.89317654,165.12,165.08,0.68]
[1762202807856,4.82530891,165.15,165.07,0.1]
[1762202807857,5.05359951,165.1,165.07,0.1]
[1762202808060,0.68,165.14,165.07,0.1]
[1762202808061,14.8424272,165.08,165.07,0.1]
[1762202808270,14.8424272,165.08,165.01,116.43920204]
[1762202808271,9.78882769,165.07,165.01,116.43920204]
[1762202808457,14.85126245,165.06,165.01,116.43920204]
[1762202808766,0.68,165.07,165.01,123.17927947]
[1762202808767,3.89317654,165.05,165.01,123.17927947]
[1762202809070,3.89317654,165.04,165.02,0.68]
[1762202809247,18.82967177,165.09,165.02,0.68]
[1762202809451,4.89968291,165.07,165.02,0.68]
[1762202809662,3.92195044,165.06,165.02,0.68]
[1762202809858,11.79459247,165.05,165.01,116.43920204]
[1762202810063,3.92195044,165.04,165.02,0.68]
[1762202810356,3.92195044,165.03,165.02,6.73987153]
[1762202811657,4.89968291,165.09,165.02,42.48155035]
[1762202811861,3.93501375,165.08,165.05,20.592]
[1762202812053,4.89968291,165.14,165.06,0.68]
[1762202812252,4.89968291,165.15,165.07,0.14216157]
[1762202812462,4.89968291,165.15,165.08,21.20184152]
[1762202812658,4.89968291,165.16,165.08,21.88184152]
[1762202812863,4.89968291,165.17,165.11,20.592]
[1762202813081,4.89968291,165.19,165.11,20.592]
[1762202813268,4.89968291,165.18,165.12,0.68]
[1762202813744,4.89968291,165.19,165.12,0.68]
[1762202813964,4.89968291,165.17,165.12,0.68]
[1762202814470,4.89968291,165.16,165.13,6.05583479]
[1762202814848,4.89968291,165.17,165.14,0.68]
[1762202815257,4.89968291,165.15,165.14,0.68]
[1762202815664,4.89968291,165.16,165.14,0.68]
[1762202815968,4.89968291,165.17,165.14,0.68]
[1762202816172,6.5874233,165.18,165.14,0.68]
[1762202816346,6.5874233,165.17,165.14,0.68]
[1762202816546,6.5874233,165.17,165.11,0.68]
[1762202816748,6.5874233,165.17,165.12,0.68]
[1762202816749,4.94322401,165.14,165.12,0.68]
[1762202817184,4.94322401,165.16,165.12,0.68]
[1762202817359,4.94322401,165.17,165.12,0.68]
[1762202817759,4.94322401,165.18,165.12,0.68]
[1762202817952,4.94322401,165.19,165.12,0.68]
[1762202818358,4.94322401,165.2,165.12,0.68]
[1762202818552,4.94322401,165.21,165.13,41.78742178]
[1762202818758,4.94322401,165.21,165.13,72.06659576]
[1762202818960,4.94322401,165.2,165.14,0.68]
[1762202819585,4.94322401,165.19,165.14,0.68]
[1762202819962,4.94322401,165.2,165.14,0.68]
[1762202820164,4.94322401,165.19,165.14,0.68]
[1762202820656,4.94322401,165.19,165.14,21.37405243]
[1762202820881,4.94322401,165.25,165.17,20.592]
[1762202821059,4.94322401,165.24,165.15,0.14216157]
[1762202821379,4.94322401,165.24,165.14,21.19405243]
[1762202821380,4.94322401,165.23,165.14,26.64738222]
[1762202821556,4.94322401,165.22,165.14,6.05538222]
[1762202821958,4.94322401,165.21,165.14,6.05538222]
[1762202822159,5.62322401,165.21,165.14,6.05538222]
[1762202822356,4.94322401,165.22,165.14,21.19405243]
[1762202822562,5.62322401,165.24,165.15,0.66]
[1762202822865,11.67507996,165.24,165.15,0.66]
[1762202823187,5.61322401,165.23,165.15,0.66]
[1762202823364,0.67,165.23,165.15,0.66]
[1762202823984,3.95561575,165.22,165.15,0.66]
[1762202824160,3.95561575,165.21,165.15,0.66]
[1762202824482,3.95561575,165.22,165.16,6.0547348]
[1762202824783,3.95561575,165.23,165.17,0.66]
[1762202824992,3.95561575,165.28,165.19,20.592]
[1762202825285,0.67,165.29,165.2,0.66]
[1762202825620,3.95561575,165.32,165.2,0.66]
[1762202825791,0.2,165.33,165.2,0.66]
[1762202825792,0.67,165.3,165.2,0.66]
[1762202826290,3.95561575,165.32,165.21,0.14216157]
[1762202826488,0.2,165.33,165.25,0.14216157]
[1762202826789,3.95561575,165.38,165.3,0.14216157]
[1762202827005,4.94322401,165.48,165.31,1.99999999]
[1762202827286,7.87264203,165.45,165.31,0.80216157]
[1762202827459,0.67,165.46,165.32,0.66]
[1762202827783,0.67,165.47,165.35,0.14216157]
[1762202827974,8.54264203,165.47,165.35,0.14216157]
[1762202828175,0.67,165.47,165.36,0.66]
[1762202828575,0.67,165.47,165.37,21.16466105]
[1762202828775,0.87,165.5,165.4,20.592]
[1762202829161,0.87,165.5,165.41,0.66]
[1762202829360,6.9123819,165.5,165.41,0.66]
[1762202829559,0.67,165.49,165.41,0.66]
[1762202829788,6.91230027,165.5,165.41,0.66]
[1762202829973,0.67,165.49,165.41,0.66]
[1762202830381,6.24230027,165.5,165.41,0.66]
[1762202830601,6.04302634,165.48,165.41,0.66]
[1762202830889,0.67,165.49,165.41,6.70544201]
[1762202831179,6.71276955,165.49,165.41,6.70544201]
[1762202831593,7.87264203,165.46,165.23,50.0]
[1762202831767,7.87264203,165.44,165.28,9.78882769]
[1762202832107,20.73416157,165.45,165.27,45.38028679]
[1762202832267,7.87264203,165.39,165.28,0.66]
[1762202832585,7.87264203,165.42,165.31,21.17234287]
[1762202832885,0.67,165.41,165.32,0.66]
[1762202833085,0.67,165.43,165.32,0.66]
[1762202833293,0.67,165.42,165.32,0.66]
[1762202833958,0.67,165.42,165.25,1.99999999]
[1762202833959,7.87264203,165.39,165.29,0.66]
[1762202834165,7.87264203,165.38,165.29,0.66]
[1762202834580,6.04704601,165.37,165.29,6.70964673]
[1762202834869,6.04704601,165.37,165.29,0.66]
[1762202834870,29.70730308,165.37,165.29,0.66]
[1762202835270,6.71704601,165.37,165.29,6.70990831]
[1762202836282,0.67,165.36,165.28,6.05029262]
[1762202836483,0.67,165.36,165.27,6.05069676]
[1762202836484,7.87264203,165.35,165.27,6.05069676]
[1762202836691,6.04850904,165.33,165.27,6.05069676]
[1762202836989,6.04850904,165.33,165.23,0.66]
[1762202836990,7.87264203,165.31,165.23,0.66]
[1762202837193,0.67,165.32,165.23,0.66]
[1762202837486,7.87264203,165.3,165.22,6.05217915]
[1762202837689,7.87264203,165.27,165.2,0.66]
[1762202838089,7.87264203,165.26,165.2,0.66]
[1762202838590,13.92444546,165.24,165.17,6.71419009]
[1762202838790,13.92444546,165.24,165.17,0.66]
[1762202839086,13.92444546,165.24,165.14,0.66]
[1762202839087,8.54264203,165.23,165.14,0.66]
[1762202839490,20.73416157,165.29,165.14,21.252]
[1762202839491,0.67,165.26,165.14,21.252]
[1762202839874,0.67,165.26,165.15,0.80216157]
[1762202840088,8.54264203,165.26,165.15,0.80216157]
[1762202840291,7.87264203,165.25,165.15,0.80216157]
[1762202840617,0.67,165.25,165.15,0.66]
[1762202840794,0.67,165.3,165.19,20.592]
[1762202841102,7.87264203,165.3,165.19,20.592]
[1762202841387,7.87264203,165.25,165.17,0.66]
[1762202841768,0.67,165.25,165.17,0.66]
[1762202841971,0.67,165.28,165.17,0.66]
[1762202842680,0.67,165.28,165.18,41.78100592]
[1762202842885,0.67,165.28,165.19,0.14216157]
[1762202843195,0.67,165.28,165.19,0.66]
[1762202843394,8.54264203,165.28,165.19,0.66]
[1762202843598,14.59298465,165.28,165.19,0.66]
[1762202843788,0.67,165.32,165.21,20.592]
[1762202844095,0.67,165.34,165.22,0.14216157]
[1762202844292,0.67,165.34,165.24,0.14216157]
[1762202844502,0.67,165.34,165.26,0.14216157]
[1762202844705,0.67,165.34,165.27,21.17746716]
[1762202844909,0.67,165.34,165.28,0.66]
[1762202845118,0.67,165.37,165.28,0.66]
[1762202846495,0.67,165.41,165.28,0.66]
[1762202846807,6.71558498,165.41,165.3,21.1736237]
[1762202846990,14.58822701,165.41,165.3,21.1736237]
[1762202847194,0.67,165.4,165.31,0.66]
[1762202848485,7.87264203,165.38,165.3,6.04960677]
[1762202848810,0.68,165.38,165.32,6.0488749]
[1762202848983,0.68,165.38,165.31,6.73919461]
[1762202849623,0.68,165.38,165.31,21.86229666]
[1762202849903,6.72673665,165.38,165.31,6.73919461]
[1762202850102,9.4579892,165.44,165.32,0.69]
[1762202850304,0.2,165.5,165.32,0.69]
[1762202850305,3.9098089,165.45,165.32,0.69]
[1762202850634,9.6579892,165.5,165.37,0.14216157]
[1762202850635,0.2,165.5,165.37,0.14216157]
[1762202850780,0.68,165.49,165.41,6.0455837]
[1762202850981,6.72271497,165.49,165.38,21.282]
[1762202851183,7.87264203,165.48,165.38,6.73658289]
[1762202851504,0.68,165.47,165.38,21.85328382]
[1762202851814,4.77034253,165.47,165.38,21.85328382]
[1762202852013,0.88,165.5,165.39,0.69]
[1762202852314,0.88,165.5,165.41,20.592]
[1762202852812,0.88,165.5,165.43,21.15698481]
[1762202853812,0.67,165.49,165.43,6.0448528]
[1762202854316,7.87264203,165.47,165.39,6.76606292]
[1762202854501,7.87264203,165.47,165.39,21.88184984]
[1762202854814,8.54264203,165.48,165.39,21.88184984]
[1762202855115,0.67,165.48,165.39,21.88184984]
[1762202855316,0.67,165.48,165.4,0.72]
[1762202855512,0.87,165.5,165.4,21.312]
[1762202855720,6.91233229,165.5,165.41,0.72]
[1762202856027,0.67,165.49,165.41,0.72]